[Event "Early-Titled-Tuesday-Blitz-October-24-2023"]
[Site "Chess.com"]
[Date "2023.10.24"]
[Round "5"]
[White "Akylbek2021"]
[Black "Bilan_Danila"]
[Result "0-1"]
[WhiteElo "2258"]
[BlackElo "2412"]
[TimeControl "180+1"]
[EndTime "8:54:47 PDT"]
[Termination "Bilan_Danila won by checkmate"]

1. d4 {[%clk 0:03:00.9]} 1... d5 {[%clk 0:02:59.8]} 2. Nf3 {[%clk 0:03:00.9]}
2... Nf6 {[%clk 0:02:59.3]} 3. c4 {[%clk 0:03:00.8]} 3... c6 {[%clk 0:02:56.6]}
4. e3 {[%clk 0:02:57.7]} 4... e6 {[%clk 0:02:56.6]} 5. Nc3 {[%clk 0:02:58]} 5...
Nbd7 {[%clk 0:02:56.6]} 6. Be2 {[%clk 0:02:53]} 6... Bd6 {[%clk 0:02:56.3]} 7.
O-O {[%clk 0:02:53]} 7... O-O {[%clk 0:02:56.3]} 8. b3 {[%clk 0:02:43.4]} 8...
Ne4 {[%clk 0:02:35.8]} 9. Bb2 {[%clk 0:02:40.5]} 9... f5 {[%clk 0:02:34.7]} 10.
Rc1 {[%clk 0:02:33.8]} 10... Qf6 {[%clk 0:02:23.4]} 11. h3 {[%clk 0:02:20.5]}
11... Qh6 {[%clk 0:02:08.3]} 12. Nxe4 {[%clk 0:02:11.6]} 12... fxe4 {[%clk
0:01:53.9]} 13. Ne5 {[%clk 0:02:11]} 13... Nf6 {[%clk 0:01:19.8]} 14. Ng4 {[%clk
0:01:55.9]} 14... Qg5 {[%clk 0:00:58.8]} 15. Qd2 {[%clk 0:01:36.9]} 15... Nxg4
{[%clk 0:00:48.7]} 16. Bxg4 {[%clk 0:01:31.3]} 16... h5 {[%clk 0:00:46.5]} 17.
Be2 {[%clk 0:01:21.2]} 17... e5 {[%clk 0:00:25.5]} 18. f4 {[%clk 0:00:33.5]}
18... exf4 {[%clk 0:00:22.7]} 19. cxd5 {[%clk 0:00:27.5]} 19... Bxh3 {[%clk
0:00:12.6]} 20. Bc4 {[%clk 0:00:23.2]} 20... b5 {[%clk 0:00:04.3]} 21. dxc6+
{[%clk 0:00:14.7]} 21... bxc4 {[%clk 0:00:04.5]} 22. Rxc4 {[%clk 0:00:15.2]}
22... f3 {[%clk 0:00:04.9]} 23. d5 {[%clk 0:00:10.3]} 23... Bxg2 {[%clk
0:00:04.6]} 24. Rf2 {[%clk 0:00:09.7]} 24... Qh4 {[%clk 0:00:04.3]} 25. Rxg2
{[%clk 0:00:09]} 25... fxg2 {[%clk 0:00:04.2]} 26. Qxg2 {[%clk 0:00:09.2]} 26...
Qe1+ {[%clk 0:00:04.3]} 27. Qf1 {[%clk 0:00:03]} 27... Qxf1# {[%clk 0:00:05.2]}
0-1

[Event "Early-Titled-Tuesday-Blitz-October-24-2023"]
[Site "Chess.com"]
[Date "2023.10.24"]
[Round "5"]
[White "dawid498"]
[Black "chess_blitz00"]
[Result "1-0"]
[WhiteElo "2686"]
[BlackElo "2494"]
[TimeControl "180+1"]
[EndTime "8:54:48 PDT"]
[Termination "dawid498 won on time"]

1. Nf3 {[%clk 0:03:00.9]} 1... Nf6 {[%clk 0:02:49.2]} 2. e3 {[%clk 0:03:00.8]}
2... e6 {[%clk 0:02:48.1]} 3. c4 {[%clk 0:03:01]} 3... Be7 {[%clk 0:02:47.4]} 4.
b3 {[%clk 0:03:01.4]} 4... O-O {[%clk 0:02:48.1]} 5. Bb2 {[%clk 0:03:02]} 5...
b6 {[%clk 0:02:48.5]} 6. Be2 {[%clk 0:03:01.8]} 6... Bb7 {[%clk 0:02:49.2]} 7.
O-O {[%clk 0:03:02.5]} 7... d5 {[%clk 0:02:47.5]} 8. d3 {[%clk 0:03:02.2]} 8...
Nbd7 {[%clk 0:02:47.5]} 9. Nbd2 {[%clk 0:03:02.5]} 9... c5 {[%clk 0:02:38.2]}
10. a3 {[%clk 0:03:01.9]} 10... Re8 {[%clk 0:02:32.2]} 11. Rc1 {[%clk
0:02:54.1]} 11... Bf8 {[%clk 0:02:31.8]} 12. Rc2 {[%clk 0:02:45.6]} 12... e5
{[%clk 0:02:27.5]} 13. cxd5 {[%clk 0:02:45.7]} 13... Bxd5 {[%clk 0:02:20]} 14.
Qa1 {[%clk 0:02:40.8]} 14... Qb8 {[%clk 0:02:07.7]} 15. e4 {[%clk 0:02:30.5]}
15... Bb7 {[%clk 0:01:57.3]} 16. Nc4 {[%clk 0:02:30.8]} 16... Bd6 {[%clk
0:01:55.4]} 17. b4 {[%clk 0:02:15.2]} 17... Ba6 {[%clk 0:00:46.1]} 18. bxc5
{[%clk 0:01:26.9]} 18... bxc5 {[%clk 0:00:26.2]} 19. Rfc1 {[%clk 0:01:26.8]}
19... Bxc4 {[%clk 0:00:25.2]} 20. Rxc4 {[%clk 0:01:26.8]} 20... Nb6 {[%clk
0:00:22.5]} 21. R4c2 {[%clk 0:01:26.4]} 21... Nfd7 {[%clk 0:00:22.3]} 22. a4
{[%clk 0:01:24.1]} 22... a5 {[%clk 0:00:21]} 23. Bc3 {[%clk 0:01:23.5]} 23... h6
{[%clk 0:00:20.2]} 24. Qa2 {[%clk 0:01:09.4]} 24... Qd8 {[%clk 0:00:17.6]} 25.
g3 {[%clk 0:01:06.5]} 25... Qe7 {[%clk 0:00:11]} 26. Nh4 {[%clk 0:01:06.3]}
26... Qe6 {[%clk 0:00:07.6]} 27. Nf5 {[%clk 0:00:57]} 27... Qxa2 {[%clk
0:00:05.5]} 28. Rxa2 {[%clk 0:00:57.9]} 28... Bf8 {[%clk 0:00:05.7]} 29. f4
{[%clk 0:00:52]} 29... g6 {[%clk 0:00:04.3]} 30. Ne3 {[%clk 0:00:50.8]} 30...
Bg7 {[%clk 0:00:04.4]} 31. f5 {[%clk 0:00:49.7]} 31... h5 {[%clk 0:00:02.4]} 32.
Kg2 {[%clk 0:00:48]} 32... Bh6 {[%clk 0:00:02.8]} 33. Bd2 {[%clk 0:00:46.8]}
33... Red8 {[%clk 0:00:02.7]} 34. Rb1 {[%clk 0:00:40.6]} 34... Rab8 {[%clk
0:00:02.2]} 35. Rb5 {[%clk 0:00:39.8]} 35... Na8 {[%clk 0:00:01.7]} 36. Nc4
{[%clk 0:00:37.3]} 36... Rxb5 {[%clk 0:00:01.8]} 37. axb5 {[%clk 0:00:38.1]}
37... Ndb6 {[%clk 0:00:02]} 38. Bxh6 {[%clk 0:00:37.2]} 38... Nxc4 {[%clk
0:00:02.3]} 39. dxc4 {[%clk 0:00:38.1]} 39... Nb6 {[%clk 0:00:02.1]} 40. Rxa5
{[%clk 0:00:37.6]} 40... Nd7 {[%clk 0:00:01.7]} 41. fxg6 {[%clk 0:00:36.7]}
41... fxg6 {[%clk 0:00:01.7]} 42. Bg5 {[%clk 0:00:37.3]} 1-0

[Event "Early-Titled-Tuesday-Blitz-October-24-2023"]
[Site "Chess.com"]
[Date "2023.10.24"]
[Round "5"]
[White "dianamirza"]
[Black "SlippperyWhenWet"]
[Result "0-1"]
[WhiteElo "2015"]
[BlackElo "2348"]
[TimeControl "180+1"]
[EndTime "8:54:48 PDT"]
[Termination "SlippperyWhenWet won on time"]

1. e4 {[%clk 0:03:00.9]} 1... a6 {[%clk 0:03:00.9]} 2. d4 {[%clk 0:02:59]} 2...
e6 {[%clk 0:03:00.2]} 3. c4 {[%clk 0:02:52.9]} 3... g6 {[%clk 0:02:50.3]} 4. Nc3
{[%clk 0:02:47.8]} 4... Bg7 {[%clk 0:02:50.2]} 5. Nf3 {[%clk 0:02:46.2]} 5...
Ne7 {[%clk 0:02:50]} 6. Bf4 {[%clk 0:02:45]} 6... d6 {[%clk 0:02:48.9]} 7. Be2
{[%clk 0:02:41.7]} 7... Nd7 {[%clk 0:02:48.4]} 8. O-O {[%clk 0:02:41.6]} 8... b6
{[%clk 0:02:48.6]} 9. Qd2 {[%clk 0:02:39.6]} 9... h6 {[%clk 0:02:46.6]} 10. e5
{[%clk 0:02:25.1]} 10... dxe5 {[%clk 0:02:15.1]} 11. dxe5 {[%clk 0:02:20.4]}
11... Bb7 {[%clk 0:02:12.2]} 12. Rad1 {[%clk 0:01:59.6]} 12... g5 {[%clk
0:02:07.6]} 13. Bg3 {[%clk 0:01:53.4]} 13... Ng6 {[%clk 0:02:05]} 14. Qe3 {[%clk
0:01:43.8]} 14... Qe7 {[%clk 0:02:02.9]} 15. Rfe1 {[%clk 0:01:15.6]} 15... O-O
{[%clk 0:01:38.5]} 16. Bd3 {[%clk 0:00:38.4]} 16... Bxf3 {[%clk 0:01:23.9]} 17.
Qxf3 {[%clk 0:00:25]} 17... Ndxe5 {[%clk 0:01:21.8]} 18. Bxe5 {[%clk 0:00:19.8]}
18... Nxe5 {[%clk 0:01:21.6]} 19. Rxe5 {[%clk 0:00:14.8]} 19... Bxe5 {[%clk
0:01:20.6]} 20. Qe4 {[%clk 0:00:15.2]} 20... f5 {[%clk 0:01:10.9]} 21. Qxe5
{[%clk 0:00:14.6]} 21... Rfd8 {[%clk 0:01:11.5]} 22. Bxf5 {[%clk 0:00:12.6]}
22... Rxd1+ {[%clk 0:01:02.2]} 23. Nxd1 {[%clk 0:00:13.5]} 23... Re8 {[%clk
0:00:39.7]} 24. Bg6 {[%clk 0:00:11.6]} 24... Rd8 {[%clk 0:00:39.9]} 25. Ne3
{[%clk 0:00:11.2]} 25... Qd6 {[%clk 0:00:34.4]} 26. Qxd6 {[%clk 0:00:11.3]}
26... Rxd6 {[%clk 0:00:35.3]} 27. h3 {[%clk 0:00:10.2]} 27... Rd2 {[%clk
0:00:35.9]} 28. Nc2 {[%clk 0:00:09.2]} 28... Kg7 {[%clk 0:00:35.8]} 29. Be4
{[%clk 0:00:08.9]} 29... Re2 {[%clk 0:00:34.9]} 30. f3 {[%clk 0:00:08.9]} 30...
Rd2 {[%clk 0:00:33.3]} 31. b4 {[%clk 0:00:07.6]} 31... c5 {[%clk 0:00:33.3]} 32.
b5 {[%clk 0:00:07.1]} 32... a5 {[%clk 0:00:30.9]} 33. a4 {[%clk 0:00:06.8]}
33... Kf6 {[%clk 0:00:31.3]} 34. g4 {[%clk 0:00:03.8]} 34... Ke5 {[%clk
0:00:29.8]} 35. Ne3 {[%clk 0:00:03.3]} 35... Kf4 {[%clk 0:00:26.3]} 36. Ng2+
{[%clk 0:00:02]} 36... Kg3 {[%clk 0:00:24.3]} 0-1

[Event "Early-Titled-Tuesday-Blitz-October-24-2023"]
[Site "Chess.com"]
[Date "2023.10.24"]
[Round "5"]
[White "ama18"]
[Black "svilson23"]
[Result "1-0"]
[WhiteElo "2529"]
[BlackElo "2273"]
[TimeControl "180+1"]
[EndTime "8:54:50 PDT"]
[Termination "ama18 won by resignation"]

1. Nf3 {[%clk 0:03:00.9]} 1... d5 {[%clk 0:02:56.7]} 2. g3 {[%clk 0:03:00.8]}
2... c6 {[%clk 0:02:54]} 3. Bg2 {[%clk 0:03:00.7]} 3... g6 {[%clk 0:02:51.8]} 4.
O-O {[%clk 0:03:01]} 4... Bg7 {[%clk 0:02:52.7]} 5. d4 {[%clk 0:03:01.7]} 5...
f5 {[%clk 0:02:45.1]} 6. b3 {[%clk 0:03:01]} 6... e6 {[%clk 0:02:44.4]} 7. Bb2
{[%clk 0:02:40]} 7... Nd7 {[%clk 0:02:42.3]} 8. c4 {[%clk 0:02:37.1]} 8... Ngf6
{[%clk 0:02:42.8]} 9. Nc3 {[%clk 0:02:37]} 9... O-O {[%clk 0:02:42.5]} 10. Rc1
{[%clk 0:02:37.6]} 10... Ne4 {[%clk 0:02:41.3]} 11. cxd5 {[%clk 0:02:35.2]}
11... exd5 {[%clk 0:02:41]} 12. b4 {[%clk 0:02:33.4]} 12... a6 {[%clk
0:02:13.7]} 13. a4 {[%clk 0:02:27.9]} 13... Qb6 {[%clk 0:01:37.8]} 14. Qb3
{[%clk 0:02:10.8]} 14... Nd6 {[%clk 0:01:29.5]} 15. e3 {[%clk 0:02:06]} 15...
Nc4 {[%clk 0:01:27.8]} 16. Ba1 {[%clk 0:02:04.5]} 16... Re8 {[%clk 0:01:19.2]}
17. Rfd1 {[%clk 0:02:04.5]} 17... Nf6 {[%clk 0:01:15.5]} 18. Bf1 {[%clk
0:02:04.5]} 18... Be6 {[%clk 0:01:12.6]} 19. Ng5 {[%clk 0:02:04.5]} 19... Nd6
{[%clk 0:01:11.5]} 20. Nxe6 {[%clk 0:02:04.4]} 20... Rxe6 {[%clk 0:01:11.2]} 21.
b5 {[%clk 0:02:04.9]} 21... axb5 {[%clk 0:01:07.9]} 22. axb5 {[%clk 0:02:05.8]}
22... Nfe4 {[%clk 0:01:05.2]} 23. Rb1 {[%clk 0:01:44.2]} 23... Nxc3 {[%clk
0:00:51]} 24. Bxc3 {[%clk 0:01:45.1]} 24... Bf8 {[%clk 0:00:36.5]} 25. bxc6
{[%clk 0:01:25.5]} 25... Qxb3 {[%clk 0:00:37.4]} 26. Rxb3 {[%clk 0:01:25.9]}
26... bxc6 {[%clk 0:00:38.3]} 27. Be1 {[%clk 0:01:19.3]} 27... Ra2 {[%clk
0:00:35.4]} 28. Rc1 {[%clk 0:01:18.1]} 28... Ne4 {[%clk 0:00:35]} 29. f3 {[%clk
0:01:15.4]} 29... Nd2 {[%clk 0:00:34]} 30. Bxd2 {[%clk 0:00:58.6]} 30... Rxd2
{[%clk 0:00:34.9]} 31. h4 {[%clk 0:00:46.7]} 31... Kf7 {[%clk 0:00:30.6]} 32.
Rbc3 {[%clk 0:00:35.9]} 32... Bb4 {[%clk 0:00:23.1]} 33. Rb3 {[%clk 0:00:35.8]}
33... Be7 {[%clk 0:00:15.4]} 34. Ba6 {[%clk 0:00:32.3]} 34... h6 {[%clk
0:00:14.7]} 35. Bc8 {[%clk 0:00:28.8]} 35... Rd6 {[%clk 0:00:12.2]} 36. Bb7
{[%clk 0:00:29.1]} 36... Re6 {[%clk 0:00:08.7]} 37. Bxc6 {[%clk 0:00:26.9]}
37... Re2 {[%clk 0:00:08.2]} 38. Bxd5 {[%clk 0:00:26.4]} 1-0

[Event "Early-Titled-Tuesday-Blitz-October-24-2023"]
[Site "Chess.com"]
[Date "2023.10.24"]
[Round "5"]
[White "MatthewG-p4p"]
[Black "meoluoi91"]
[Result "1-0"]
[WhiteElo "2809"]
[BlackElo "2597"]
[TimeControl "180+1"]
[EndTime "8:54:52 PDT"]
[Termination "MatthewG-p4p won by checkmate"]

1. e4 {[%clk 0:02:55.3]} 1... c6 {[%clk 0:02:59.7]} 2. d4 {[%clk 0:02:55.4]}
2... d5 {[%clk 0:03:00.2]} 3. exd5 {[%clk 0:02:56.3]} 3... cxd5 {[%clk
0:03:00.3]} 4. Bd3 {[%clk 0:02:56.8]} 4... Nf6 {[%clk 0:02:59.1]} 5. h3 {[%clk
0:02:56.7]} 5... Nc6 {[%clk 0:02:56.5]} 6. c3 {[%clk 0:02:56.8]} 6... e5 {[%clk
0:02:49]} 7. dxe5 {[%clk 0:02:57.7]} 7... Nxe5 {[%clk 0:02:48.8]} 8. Qe2 {[%clk
0:02:57.8]} 8... Qe7 {[%clk 0:02:49.1]} 9. Bc2 {[%clk 0:02:57.9]} 9... Nc6
{[%clk 0:02:37.4]} 10. Nf3 {[%clk 0:02:57.3]} 10... Qxe2+ {[%clk 0:02:32.4]} 11.
Kxe2 {[%clk 0:02:58.2]} 11... Bc5 {[%clk 0:02:32.3]} 12. Re1 {[%clk 0:02:54.1]}
12... O-O {[%clk 0:02:30.5]} 13. Kf1 {[%clk 0:02:47.4]} 13... d4 {[%clk
0:02:27.6]} 14. Bg5 {[%clk 0:02:46.9]} 14... Nd7 {[%clk 0:02:10.1]} 15. b4
{[%clk 0:02:35.9]} 15... Bb6 {[%clk 0:01:53]} 16. b5 {[%clk 0:02:34.7]} 16...
Na5 {[%clk 0:01:53.2]} 17. cxd4 {[%clk 0:02:27.9]} 17... h6 {[%clk 0:01:43.8]}
18. Be7 {[%clk 0:02:26.2]} 18... Re8 {[%clk 0:01:43.6]} 19. Nc3 {[%clk
0:02:25.4]} 19... Nc4 {[%clk 0:01:33.5]} 20. Bb3 {[%clk 0:02:18.6]} 20... Ba5
{[%clk 0:01:27.4]} 21. Rac1 {[%clk 0:02:02.7]} 21... Ndb6 {[%clk 0:01:21.4]} 22.
Re2 {[%clk 0:01:49.1]} 22... Bd7 {[%clk 0:01:16]} 23. a4 {[%clk 0:01:42.8]}
23... Be6 {[%clk 0:01:07.3]} 24. Bc5 {[%clk 0:01:39.1]} 24... Rec8 {[%clk
0:00:50.5]} 25. Ne4 {[%clk 0:01:32.2]} 25... Bd5 {[%clk 0:00:45.6]} 26. Kg1
{[%clk 0:01:19.5]} 26... Kh8 {[%clk 0:00:40.6]} 27. Ng3 {[%clk 0:01:16.1]} 27...
Bxf3 {[%clk 0:00:36.6]} 28. gxf3 {[%clk 0:01:17]} 28... Nd2 {[%clk 0:00:37.1]}
29. Bxf7 {[%clk 0:00:54.9]} 29... Nxa4 {[%clk 0:00:37]} 30. Bd5 {[%clk
0:00:49.5]} 30... Nxc5 {[%clk 0:00:12.3]} 31. dxc5 {[%clk 0:00:45.2]} 31... Rab8
{[%clk 0:00:12.8]} 32. Nf5 {[%clk 0:00:38.8]} 32... Rd8 {[%clk 0:00:12.6]} 33.
Nd6 {[%clk 0:00:38.6]} 33... b6 {[%clk 0:00:11.2]} 34. Nf7+ {[%clk 0:00:38.6]}
34... Kh7 {[%clk 0:00:10.9]} 35. Nxd8 {[%clk 0:00:39.5]} 35... Rxd8 {[%clk
0:00:11.5]} 36. c6 {[%clk 0:00:36.9]} 36... Rxd5 {[%clk 0:00:09.9]} 37. c7
{[%clk 0:00:37.1]} 37... Nxf3+ {[%clk 0:00:10.8]} 38. Kh1 {[%clk 0:00:36.3]}
38... Rh5 {[%clk 0:00:09.7]} 39. c8=Q {[%clk 0:00:36.4]} 39... Ng5 {[%clk
0:00:10.2]} 40. Qf5+ {[%clk 0:00:35.8]} 40... g6 {[%clk 0:00:08.4]} 41. Re7+
{[%clk 0:00:35.5]} 41... Kg8 {[%clk 0:00:08.8]} 42. Rc8# {[%clk 0:00:35.3]} 1-0

[Event "Early-Titled-Tuesday-Blitz-October-24-2023"]
[Site "Chess.com"]
[Date "2023.10.24"]
[Round "5"]
[White "CraiggoryC"]
[Black "ssgm49"]
[Result "1-0"]
[WhiteElo "2222"]
[BlackElo "1811"]
[TimeControl "180+1"]
[EndTime "8:54:53 PDT"]
[Termination "CraiggoryC won on time"]

1. e4 {[%clk 0:02:37.3]} 1... c5 {[%clk 0:02:54.7]} 2. Nf3 {[%clk 0:02:36.7]}
2... e6 {[%clk 0:02:52.9]} 3. d4 {[%clk 0:02:36.8]} 3... cxd4 {[%clk 0:02:44.8]}
4. Nxd4 {[%clk 0:02:37.7]} 4... Nf6 {[%clk 0:02:39.2]} 5. Nc3 {[%clk 0:02:37]}
5... Nc6 {[%clk 0:02:39.4]} 6. Ndb5 {[%clk 0:02:37.3]} 6... Bc5 {[%clk
0:02:31.3]} 7. Bf4 {[%clk 0:02:36.7]} 7... O-O {[%clk 0:02:27.3]} 8. Bc7 {[%clk
0:02:35.3]} 8... Qe7 {[%clk 0:02:23.1]} 9. Bd6 {[%clk 0:02:32.5]} 9... Bxd6
{[%clk 0:02:19.9]} 10. Qxd6 {[%clk 0:02:31.5]} 10... Qd8 {[%clk 0:02:15.5]} 11.
Qg3 {[%clk 0:02:04]} 11... d5 {[%clk 0:02:02.1]} 12. O-O-O {[%clk 0:02:00]}
12... a6 {[%clk 0:01:54.5]} 13. Nc7 {[%clk 0:01:50]} 13... Nh5 {[%clk 0:01:25]}
14. Qf3 {[%clk 0:01:22.7]} 14... Qxc7 {[%clk 0:01:23.3]} 15. exd5 {[%clk
0:01:05.5]} 15... exd5 {[%clk 0:01:09.9]} 16. Qxh5 {[%clk 0:00:59.6]} 16... d4
{[%clk 0:01:06.9]} 17. Nd5 {[%clk 0:00:49.2]} 17... Qd6 {[%clk 0:00:53]} 18. Nb6
{[%clk 0:00:12.6]} 18... Rb8 {[%clk 0:00:41.5]} 19. Bd3 {[%clk 0:00:12.4]} 19...
g6 {[%clk 0:00:34]} 20. Qh6 {[%clk 0:00:12.5]} 20... Be6 {[%clk 0:00:22.1]} 21.
Nc4 {[%clk 0:00:11.8]} 21... Qc5 {[%clk 0:00:13]} 22. Nd2 {[%clk 0:00:11.8]}
22... Nb4 {[%clk 0:00:12.2]} 23. Ne4 {[%clk 0:00:11.1]} 23... Qe7 {[%clk
0:00:07.9]} 24. Ng5 {[%clk 0:00:09.7]} 24... f6 {[%clk 0:00:04]} 25. Nxe6 {[%clk
0:00:07.1]} 25... Qxe6 {[%clk 0:00:04.1]} 26. Rhe1 {[%clk 0:00:06.2]} 26... Qxa2
{[%clk 0:00:01.7]} 27. Re7 {[%clk 0:00:04.5]} 1-0

[Event "Early-Titled-Tuesday-Blitz-October-24-2023"]
[Site "Chess.com"]
[Date "2023.10.24"]
[Round "5"]
[White "OK97"]
[Black "ArmanGhevondyanchess"]
[Result "1-0"]
[WhiteElo "2780"]
[BlackElo "2539"]
[TimeControl "180+1"]
[EndTime "8:54:56 PDT"]
[Termination "OK97 won by resignation"]

1. c4 {[%clk 0:03:00.9]} 1... Nf6 {[%clk 0:02:59.9]} 2. Nf3 {[%clk 0:03:00.7]}
2... g6 {[%clk 0:02:59.9]} 3. b4 {[%clk 0:02:59.8]} 3... Bg7 {[%clk 0:02:59.8]}
4. Bb2 {[%clk 0:03:00.5]} 4... O-O {[%clk 0:03:00]} 5. e3 {[%clk 0:03:01.2]}
5... d5 {[%clk 0:03:00.4]} 6. cxd5 {[%clk 0:03:01.1]} 6... Qxd5 {[%clk
0:03:00.5]} 7. Nc3 {[%clk 0:02:58.7]} 7... Qf5 {[%clk 0:03:00.8]} 8. Be2 {[%clk
0:02:57]} 8... Rd8 {[%clk 0:02:58.6]} 9. O-O {[%clk 0:02:54.6]} 9... c6 {[%clk
0:02:45.1]} 10. Qc1 {[%clk 0:02:47.9]} 10... e5 {[%clk 0:02:36.8]} 11. d3 {[%clk
0:02:43.9]} 11... Nd5 {[%clk 0:02:32.2]} 12. e4 {[%clk 0:02:28.5]} 12... Nxc3
{[%clk 0:02:29.6]} 13. Qxc3 {[%clk 0:02:29.4]} 13... Qe6 {[%clk 0:02:20.1]} 14.
Nxe5 {[%clk 0:02:20.7]} 14... Nd7 {[%clk 0:02:16.2]} 15. d4 {[%clk 0:02:18.4]}
15... Nxe5 {[%clk 0:02:14.3]} 16. dxe5 {[%clk 0:02:18.9]} 16... Qe7 {[%clk
0:02:09.7]} 17. f4 {[%clk 0:02:16.4]} 17... a5 {[%clk 0:02:04.8]} 18. a3 {[%clk
0:02:07.6]} 18... axb4 {[%clk 0:01:56.6]} 19. axb4 {[%clk 0:02:07.7]} 19... Rxa1
{[%clk 0:01:55.8]} 20. Bxa1 {[%clk 0:02:06.7]} 20... Qc7 {[%clk 0:01:34.8]} 21.
h3 {[%clk 0:01:57.4]} 21... Re8 {[%clk 0:01:19.7]} 22. Bc4 {[%clk 0:01:48.6]}
22... Be6 {[%clk 0:01:19.8]} 23. Bxe6 {[%clk 0:01:48.1]} 23... Rxe6 {[%clk
0:01:20.2]} 24. Rd1 {[%clk 0:01:40.1]} 24... Re8 {[%clk 0:01:15.5]} 25. Qd4
{[%clk 0:01:34.2]} 25... Ra8 {[%clk 0:01:15]} 26. Bc3 {[%clk 0:01:29.1]} 26...
h5 {[%clk 0:01:09.3]} 27. f5 {[%clk 0:01:13.5]} 27... Re8 {[%clk 0:01:04.2]} 28.
f6 {[%clk 0:01:13.8]} 28... Bf8 {[%clk 0:00:49.1]} 29. Kh1 {[%clk 0:01:07.2]}
29... c5 {[%clk 0:00:43.7]} 30. Qc4 {[%clk 0:00:59.7]} 30... b5 {[%clk
0:00:36.6]} 31. Qxb5 {[%clk 0:00:54.3]} 31... Rb8 {[%clk 0:00:36.6]} 32. Qc4
{[%clk 0:00:54.1]} 32... Qc6 {[%clk 0:00:30.7]} 33. bxc5 {[%clk 0:00:51.7]}
33... Qxc5 {[%clk 0:00:24.2]} 34. Qxc5 {[%clk 0:00:46.2]} 34... Bxc5 {[%clk
0:00:25.1]} 35. g4 {[%clk 0:00:33.7]} 35... hxg4 {[%clk 0:00:21.8]} 36. hxg4
{[%clk 0:00:34.6]} 36... Re8 {[%clk 0:00:20.5]} 37. Rd5 {[%clk 0:00:34]} 37...
Be3 {[%clk 0:00:18.8]} 38. Kg2 {[%clk 0:00:33.5]} 38... Bf4 {[%clk 0:00:18.3]}
39. Kf3 {[%clk 0:00:33.5]} 39... Bh2 {[%clk 0:00:18.4]} 40. Bd4 {[%clk
0:00:30.7]} 40... g5 {[%clk 0:00:15.9]} 41. e6 {[%clk 0:00:27.9]} 41... Rxe6
{[%clk 0:00:11.4]} 42. Rxg5+ {[%clk 0:00:28.4]} 42... Kf8 {[%clk 0:00:11.2]} 43.
Rh5 {[%clk 0:00:29]} 43... Ke8 {[%clk 0:00:09.5]} 44. Rxh2 {[%clk 0:00:28.8]}
44... Kd7 {[%clk 0:00:10.1]} 1-0

[Event "Early-Titled-Tuesday-Blitz-October-24-2023"]
[Site "Chess.com"]
[Date "2023.10.24"]
[Round "5"]
[White "InitiatingASC"]
[Black "Verony64"]
[Result "1-0"]
[WhiteElo "2334"]
[BlackElo "2180"]
[TimeControl "180+1"]
[EndTime "8:54:57 PDT"]
[Termination "InitiatingASC won on time"]

1. e4 {[%clk 0:02:08.6]} 1... e5 {[%clk 0:02:57.2]} 2. Nf3 {[%clk 0:02:07.6]}
2... d6 {[%clk 0:02:57.6]} 3. d4 {[%clk 0:02:06.2]} 3... Nd7 {[%clk 0:02:57.6]}
4. Nc3 {[%clk 0:02:04.9]} 4... c6 {[%clk 0:02:57.7]} 5. dxe5 {[%clk 0:02:03.7]}
5... dxe5 {[%clk 0:02:55.7]} 6. Bg5 {[%clk 0:02:00.6]} 6... Be7 {[%clk
0:02:55.3]} 7. Qd2 {[%clk 0:01:58.3]} 7... Ngf6 {[%clk 0:02:52.8]} 8. O-O-O
{[%clk 0:01:57.2]} 8... Qc7 {[%clk 0:02:52.3]} 9. Kb1 {[%clk 0:01:54]} 9... O-O
{[%clk 0:02:51.1]} 10. Nh4 {[%clk 0:01:51.4]} 10... Nc5 {[%clk 0:02:45.4]} 11.
f3 {[%clk 0:01:44.3]} 11... Rd8 {[%clk 0:02:28.4]} 12. Qe3 {[%clk 0:01:36.3]}
12... Rxd1+ {[%clk 0:02:26.3]} 13. Nxd1 {[%clk 0:01:36.5]} 13... Ne6 {[%clk
0:01:57]} 14. Nf5 {[%clk 0:01:25.2]} 14... Bc5 {[%clk 0:01:43.4]} 15. Qc1 {[%clk
0:01:14.4]} 15... Nxg5 {[%clk 0:01:05.2]} 16. Qxg5 {[%clk 0:01:00.1]} 16... Bxf5
{[%clk 0:01:02.6]} 17. Qxf5 {[%clk 0:00:57.3]} 17... Rd8 {[%clk 0:00:57.5]} 18.
Bc4 {[%clk 0:00:56.7]} 18... b5 {[%clk 0:00:53]} 19. Bb3 {[%clk 0:00:56.7]}
19... a5 {[%clk 0:00:52.3]} 20. a4 {[%clk 0:00:48.8]} 20... b4 {[%clk
0:00:51.8]} 21. Qg5 {[%clk 0:00:41.7]} 21... h6 {[%clk 0:00:44.2]} 22. Qc1
{[%clk 0:00:39.8]} 22... Qd7 {[%clk 0:00:37.9]} 23. Ne3 {[%clk 0:00:38.8]} 23...
Bxe3 {[%clk 0:00:23.7]} 24. Qxe3 {[%clk 0:00:38.2]} 24... Qd2 {[%clk 0:00:22.5]}
25. Qb6 {[%clk 0:00:33.1]} 25... Rd6 {[%clk 0:00:18.1]} 26. Rc1 {[%clk
0:00:19.1]} 26... Qxg2 {[%clk 0:00:13.8]} 27. Qb8+ {[%clk 0:00:18.1]} 27... Kh7
{[%clk 0:00:12]} 28. Qxd6 {[%clk 0:00:18.2]} 28... Qxf3 {[%clk 0:00:10.8]} 29.
Qxe5 {[%clk 0:00:16.4]} 29... Nxe4 {[%clk 0:00:09.5]} 30. Qxa5 {[%clk
0:00:13.9]} 30... Nd2+ {[%clk 0:00:09.1]} 31. Ka2 {[%clk 0:00:14.4]} 31... Qf4
{[%clk 0:00:05.9]} 32. Rd1 {[%clk 0:00:13]} 32... Qxh2 {[%clk 0:00:03.5]} 33.
Qf5+ {[%clk 0:00:11.6]} 33... Kg8 {[%clk 0:00:02.2]} 34. Qxf7+ {[%clk
0:00:11.9]} 34... Kh7 {[%clk 0:00:01.8]} 35. Qf5+ {[%clk 0:00:09.3]} 1-0